Cogmind - Beta 12 @@@ ROGUE MODE // 2023.10.29 @ 23:23:39 Player: Figgis Result: Destroyed by S-10 Pest with Light Assault Rifle Performance ------------- Evolutions (0) 0 Regions Visited (4) 800 Robots Destroyed (15) 75 Value Destroyed (308) 308 Prototype IDs (23) 460 Alien Tech Used (0) 0 Bonus (300) 300 TOTAL SCORE: 1943 Bonus ------- Aligned with FarCom 300 Cogmind --------- Core Integrity 0/250 Matter 286/300 Energy 158/160 System Corruption 0% Temperature Cool (0) Movement Rolling (130) Ox2 Location -9/Mines Parts ------- > --- POWER (1) -------- Light Nuclear Core > --- PROPULSION (2) --- Compact Wheel > --- UTILITY (2) ------ High-capacity Storage Unit > --- WEAPON (2) ------- Light Assault Rifle Light Assault Rifle > --- INVENTORY (20) --- Light Ion Engine Wheel VTOL Module Heat Sink Improved Heat Sink Small Storage Unit Large Storage Unit High-capacity Matter Pod (200) High-capacity Matter Pod (200) High-capacity Matter Pod (200) Cloak of Protection Light Armor Plating EM Shotgun Medium Laser Medium Laser Spread Laser Light Assault Rifle Peak State ------------ > --- POWER ------------ Light Nuclear Core > --- PROPULSION ------- Wheel Compact Wheel > --- UTILITY ---------- Large Storage Unit > --- WEAPON ----------- Light Assault Rifle Light Assault Rifle > --- INVENTORY -------- Light Nuclear Core Wheel Heat Sink Improved Heat Sink Cloak of Protection Light Armor Plating Medium Laser Medium Laser Light Assault Rifle [Rating: 10] Favorites ----------- Power Light Nuclear Core Engine Light Ion Engine Power Core Light Nuclear Core Propulsion Compact Wheel Wheel Compact Wheel Utility Large Storage Unit Storage Large Storage Unit Weapon Light Assault Rifle Ballistic Gun Light Assault Rifle Build | -11 -10 -10 -10 -9 ------- Run | Jun Mat Min Exi Min Slots Evolved . | . . . . . Power . | . . . . . Propulsion . | . . . . . Utility . | . . . . . Weapon . | . . . . . Parts Attached 16 | 6 4 3 1 2 Power 4 | 1 1 1 . 1 Engine 2 | 1 1 . . . Core 2 | . . 1 . 1 Reactor . | . . . . . Propulsion 4 | 2 1 1 . . Treads . | . . . . . Leg . | . . . . . Wheel 4 | 2 1 1 . . Hover . | . . . . . Flight . | . . . . . Utility 3 | 1 1 . 1 . Device . | . . . . . Storage 3 | 1 1 . 1 . Processor . | . . . . . Hackware . | . . . . . Protection . | . . . . . Artifact . | . . . . . Weapon 5 | 2 1 1 . 1 Energy Gun . | . . . . . Energy Cannon . | . . . . . Ballistic Gun 5 | 2 1 1 . 1 Ballistic Cannon . | . . . . . Launcher . | . . . . . Special Weapon . | . . . . . Impact Weapon . | . . . . . Slashing Weapon . | . . . . . Piercing Weapon . | . . . . . Special Melee Weapon . | . . . . . Unidentified Prototypes . | . . . . . Parts Lost 7 | . 1 3 . 3 Power 3 | . 1 1 . 1 Propulsion 2 | . . 1 . 1 Utility . | . . . . . Weapon 2 | . . 1 . 1 Highest Loss Streak 3 | . 1 3 . 2 To Critical Strikes . | . . . . . Average Slot Usage (%) 83 | . 83 85 85 82 Engine 4 | . 14 1 . . Core 8 | . . 12 14 12 Wheel 27 | . 26 28 28 26 Storage 14 | . 14 14 14 14 Ballistic Gun 27 | . 28 28 28 27 Naked Turns . | . . . . . Heaviest Build 47 | 11 26 27 47 47 Greatest Support 32 | 32 32 26 26 26 Greatest Overweight (x) 1 | . 1 1 1 1 Average Overweight (x) . | . . 1 1 1 Largest Inventory Capacity 20 | 8 15 15 20 20 Average Capacity 15 | 6 14 15 15 20 Most Carried 17 | 5 10 9 13 17 Average Carried 8 | 2 5 7 9 14 Final Capacity 20 | 8 15 15 20 20 Final Carried 17 | 2 9 8 13 17 Class Distribution -------------------- 100% | Mutant Dominant Class ---------------- Mutant | -10/Materials Mutant | -10/Mines Mutant | -10/Exiles Mutant | -9/Mines Resources | -11 -10 -10 -10 -9 ----------- Run | Jun Mat Min Exi Min Matter Collected 480 | 213 176 57 . 34 Remotely . | . . . . . Salvage Created 359 | . 242 43 . 74 Parts 38 | . 19 7 . 12 Haulers Intercepted . | . . . . . Recyclers Shooed . | . . . . . Parts Field Recycled . | . . . . . Retrieved Matter . | . . . . . Parts Self-Destructed . | . . . . . Prevented . | . . . . . Kills | -11 -10 -10 -10 -9 ------- Run | Jun Mat Min Exi Min Combat Hostiles Destroyed 13 | . 5 3 . 5 Guns 13 | . 5 3 . 5 Classes Destroyed 3 | . 2 1 . . Watcher 2 | . 2 . . . Swarmer 8 | . . 3 . 5 Grunt 5 | . 5 . . . Best Kill Streak 4 | . 2 3 . 4 Combat Bots Only 4 | . 2 3 . 4 Max Kills in Single Turn 2 | . 1 2 . 1 Gunslinging 1 | . . 1 . . Exploded . | . . . . . Melee . | . . . . . Uniques/NPCs Destroyed . | . . . . . Combat | -11 -10 -10 -10 -9 -------- Run | Jun Mat Min Exi Min Damage Taken 812 | . 277 237 . 298 Core 254 | . 60 78 . 116 Absorbed by Shields . | . . . . . Regen/Repaired (Parts) 28 | . 28 . . . Core Remaining (%) 100 | 100 . . . . Volleys Fired 51 | . 26 9 . 16 Largest 2 | . 2 2 . 2 Hottest 40 | . 40 40 . 40 Shots Fired 100 | . 52 18 . 30 Gun 100 | . 52 18 . 30 Cannon . | . . . . . Launcher . | . . . . . Special . | . . . . . Kinetic 100 | . 52 18 . 30 Thermal . | . . . . . Explosive . | . . . . . Electromagnetic . | . . . . . Robot Hit Streak 7 | . 6 7 . 3 Robot Miss Streak 5 | . 5 3 . 3 Penetration Max . | . . . . . Secondary Targets 2 | . 1 1 . . Max Gunslinging Chain 1 | . 1 1 . . Shots Hit Robots 59 | . 32 11 . 16 Core Hits 28 | . 16 4 . 8 Critical Kills . | . . . . . Critical Parts Destroyed . | . . . . . Critical Strikes . | . . . . . Melee Attacks . | . . . . . Impact . | . . . . . Slashing . | . . . . . Piercing . | . . . . . Sneak Attacks . | . . . . . Combat Hostiles . | . . . . . Follow-up Attacks . | . . . . . Damage Inflicted 635 | . 378 100 . 157 Guns 635 | . 378 100 . 157 Cannons . | . . . . . Explosions . | . . . . . Melee . | . . . . . Ramming . | . . . . . Kinetic 635 | . 378 100 . 157 Thermal . | . . . . . Explosive . | . . . . . Electromagnetic . | . . . . . Impact . | . . . . . Slashing . | . . . . . Piercing . | . . . . . Highest Corruption . | . . . . . Average Corruption . | . . . . . Corruption Purged . | . . . . . Corruption Blocked . | . . . . . Overload Shots . | . . . . . Overflow Damage . | . . . . . Projectiles . | . . . . . Explosions . | . . . . . Melee . | . . . . . Knockbacks . | . . . . . Impact . | . . . . . Kinetic . | . . . . . Secondary . | . . . . . Self-Inflicted Damage . | . . . . . Shots . | . . . . . Rammed . | . . . . . Targets Rammed . | . . . . . Kicked . | . . . . . Crushed . | . . . . . Highest Temperature 25 | . 25 4 . 8 Average Temperature 7 | . 9 3 . 4 Received Heat Transfer 156 | . 156 . . . Siege Activations . | . . . . . Robots Corrupted . | . . . . . Combat Hostiles . | . . . . . Parts Fried . | . . . . . Impact Corruptions . | . . . . . Robots Melted . | . . . . . Combat Hostiles . | . . . . . Parts Melted . | . . . . . Heat Transferred . | . . . . . Parts Sabotaged . | . . . . . Parts Stolen . | . . . . . Parts Stripped . | . . . . . Power Chain Reactions . | . . . . . Missiles Intercepted . | . . . . . Alert | -11 -10 -10 -10 -9 ------- Run | Jun Mat Min Exi Min Peak Influence 227 | . 227 128 . 95 Initial 88 | . . 88 . . Average 112 | . 147 121 . 67 Maximum Alert Level 1 | . 1 . . . Low Security (%) 81 | 100 58 100 . 100 Level 1 18 | . 41 . . . Level 2 . | . . . . . Level 3 . | . . . . . Level 4 . | . . . . . Level 5 . | . . . . . High Security . | . . . . . Max Security . | . . . . . Squads Dispatched 1 | . 1 . . . Investigation 1 | . 1 . . . Extermination . | . . . . . Reinforcement . | . . . . . Assault . | . . . . . Garrison . | . . . . . Intercept . | . . . . . Searches Triggered . | . . . . . Construction Impeded . | . . . . . Haulers Reinforced . | . . . . . Active Scanning Responses . | . . . . . Cargo Convoy Interrupts . | . . . . . Stealth | -11 -10 -10 -10 -9 --------- Run | Jun Mat Min Exi Min Distress Signals . | . . . . . Communications Jammed . | . . . . . Distress Signals . | . . . . . Times Spotted 22 | . 11 3 . 8 Peak Tracking Total 4 | . 3 3 . 4 Tactical Retreats 1 | . . . . 1 Traps | -11 -10 -10 -10 -9 ------- Run | Jun Mat Min Exi Min Traps Triggered 1 | . 1 . . . Indirectly . | . . . . . Trap Hack Attempts . | . . . . . Triggered . | . . . . . Disarmed . | . . . . . Reprogrammed . | . . . . . Reused . | . . . . . Traps Extracted . | . . . . . Installed . | . . . . . Triggered . | . . . . . Machines | -11 -10 -10 -10 -9 ---------- Run | Jun Mat Min Exi Min Machines Disabled . | . . . . . Max in Single Turn . | . . . . . Machines Repaired . | . . . . . Machines Sabotaged . | . . . . . Overloaded Fab Kills . | . . . . . Hacking | -11 -10 -10 -10 -9 --------- Run | Jun Mat Min Exi Min Machines Accessed 7 | . 5 . 2 . Terminals 4 | . 4 . . . Fabricators . | . . . . . Repair Stations 1 | . 1 . . . Recycling Units . | . . . . . Scanalyzers . | . . . . . Garrison Access . | . . . . . Total Hacks 23 | . 21 . 2 . Successful 12 | . 10 . 2 . Failed 10 | . 10 . . . Catastrophic 2 | . 2 . . . Database Lockouts 1 | . 1 . . . Manual 4 | . 3 . 1 . Terminals 18 | . 18 . . . Fabricators . | . . . . . Repair Stations 3 | . 3 . . . Recycling Units . | . . . . . Scanalyzers . | . . . . . Garrison Access . | . . . . . Terminal Hacks 10 | . 8 . 2 . Record 1 | . . . 1 . Robot Analysis 2 | . 2 . . . Branch Access Points 1 | . 1 . . . Repair Station Index 1 | . 1 . . . Scanalyzer Index 1 | . 1 . . . Alert Level 2 | . 2 . . . Patrol Status 1 | . 1 . . . EX-Prototype ID Bank 1 | . . . 1 . Fabricator Hacks . | . . . . . Repair Station Hacks 2 | . 2 . . . Scan Component 1 | . 1 . . . Repair 1 | . 1 . . . Recycling Unit Hacks . | . . . . . Scanalyzer . | . . . . . Garrison Access Hacks . | . . . . . Unauthorized Hacks . | . . . . . Terminals . | . . . . . Fabricators . | . . . . . Repair Stations . | . . . . . Recycling Units . | . . . . . Scanalyzers . | . . . . . Garrison Access . | . . . . . Data Cores Recovered . | . . . . . Used . | . . . . . Hacking Detections 3 | . 3 . . . Full Trace Events 1 | . 1 . . . Feedback Events . | . . . . . Feedback Blocked . | . . . . . Robot Schematics Acquired . | . . . . . Robots Built . | . . . . . Authchips . | . . . . . Time . | . . . . . Total Robot Build Rating . | . . . . . Part Schematics Acquired . | . . . . . Parts Built . | . . . . . Authchips . | . . . . . Time . | . . . . . Total Part Build Rating . | . . . . . Parts Repaired 1 | . 1 . . . Time 26 | . 26 . . . Parts Recycled . | . . . . . Recycled Matter . | . . . . . Retrieved Matter . | . . . . . Retrieved Components . | . . . . . Parts Scanalyzed . | . . . . . Part Schematics Acquired . | . . . . . Parts Damaged . | . . . . . Bothacking | -11 -10 -10 -10 -9 ------------ Run | Jun Mat Min Exi Min Used RIF Installer . | . . . . . Robots Hacked . | . . . . . Non-combat . | . . . . . Combat . | . . . . . Robot Hacks Applied . | . . . . . Relay Couplers Released . | . . . . . Fabnet Peak Effective % . | . . . . . Robots Rewired . | . . . . . Allies Hacked . | . . . . . Hacks Repelled . | . . . . . Allies | -11 -10 -10 -10 -9 -------- Run | Jun Mat Min Exi Min Total Allies . | . . . . . Largest Group . | . . . . . Highest-Rated Group . | . . . . . Highest-Rated Ally . | . . . . . Total Orders . | . . . . . Ally Attacks . | . . . . . Total Damage . | . . . . . Kills . | . . . . . Allies Corrupted . | . . . . . Allies Melted . | . . . . . Intel | -11 -10 -10 -10 -9 ------- Run | Jun Mat Min Exi Min Robot Analysis Total 2 | . 2 . . . Derelict Logs Recovered 2 | . . 1 . 1 Drone Launches . | . . . . . Drone Recoveries . | . . . . . Exploration | -11 -10 -10 -10 -9 ------------- Run | Jun Mat Min Exi Min Turns Passed 1181 | 36 381 183 337 244 Spaces Moved 917 | 33 264 146 315 159 Core 19 | 19 . . . . Treads . | . . . . . Legs . | . . . . . Wheels 898 | 14 264 146 315 159 Hover . | . . . . . Flight . | . . . . . Fastest Speed 50 | 50 100 105 105 105 Average Speed 102 | 71 100 105 105 105 Slowest Speed 115 | 100 115 105 105 105 Overloaded Moves . | . . . . . Propulsion Burnouts . | . . . . . Robots Hopped . | . . . . . Cave-ins Triggered . | . . . . . Exploration Rate (%) 41 | 3 53 44 69 39 Regions Visited 4 Branch Regions 3 Pre-discovered Areas 1 | . . . 1 . Known Exits Taken 1 | . 1 . . . Unknown Exits Taken 3 | 1 . 1 1 . Scrap Searched 4 | . . 1 . 3 Spaces Dug . | . . . . . Terrain Destroyed . | . . . . . Melee . | . . . . . Projectile . | . . . . . AOE . | . . . . . Terrain Rammed . | . . . . . Walls Destroyed . | . . . . . Machines Disabled . | . . . . . Actions | -11 -10 -10 -10 -9 --------- Run | Jun Mat Min Exi Min Total 1068 | 43 332 159 320 214 Wait 58 | . 27 . . 31 Move 913 | 32 263 145 314 159 Hop . | . . . . . Pick Up 29 | 5 11 2 5 6 Fast Attach 3 | 3 . . . . Attach 12 | 3 4 3 . 2 Detach . | . . . . . Swap 1 | . . . 1 . Drop 1 | . 1 . . . Fire 51 | . 26 9 . 16 Melee . | . . . . . Ram . | . . . . . Kick . | . . . . . Crush . | . . . . . Escape Stasis . | . . . . . Rewire . | . . . . . Trap . | . . . . . Miscellaneous . | . . . . . Route ------- -11/Junkyard -10/Materials (discovered 2 exits: [*Mat] / *Min) -10/Mines (discovered 2 exits: [*Mat] / *Exi) -10/Exiles -9/Mines (discovered 1 exit: [*Mat]) History --------- Turn | Location | Event 13 | -11/Junkyard | Discovered new exit (range 16) 37 | -11/Junkyard | Entered Materials 71 | -10/Materials | Central database locked down 150 | -10/Materials | Repaired Com. Wheel 280 | -10/Materials | Identified exit to Mines 316 | -10/Materials | Build established: Mutant 348 | -10/Materials | Discovered new exit (range 3) 418 | -10/Materials | Entered Mines 440 | -10/Mines | Core integrity fell below 50% 455 | -10/Mines | Learned 4 Materials zone layouts 471 | -10/Mines | Lost 3 parts (1p1n1w) 544 | -10/Mines | Discovered new exit (range 7) 596 | -10/Mines | Deemed a non-threat by the Exiles lab entrance 596 | -10/Mines | Discovered new exit (range 5) 601 | -10/Mines | Entered Exiles 631 | -10/Exiles | Met 8R-AWN 647 | -10/Exiles | Met EX-HEX 674 | -10/Exiles | Met EX-BIN 687 | -10/Exiles | Aligned with FarCom system 688 | -10/Exiles | Given EX-Vault access code 712 | -10/Exiles | Opened EX-Vault 720 | -10/Exiles | Found Cloak of Protection 743 | -10/Exiles | Warned to stay clear of 0b10 Research branches 819 | -10/Exiles | Met EX-DEC 842 | -10/Exiles | Learned location of Zion (-7) 929 | -10/Exiles | Discovered new exit (range 10) 938 | -10/Exiles | Left Exiles lab with Cloak of Protection 938 | -10/Exiles | Entered Mines 958 | -9/Mines | Discovered new exit (range 11) 967 | -9/Mines | Learned Materials security intel 1102 | -9/Mines | Found a hidden stash of uninstalled traps 1175 | -9/Mines | Core integrity fell below 20% 1182 | -9/Mines | Destroyed by S-10 Pest with Light Assault Rifle Last Messages --------------- 01083_ Found Spread Laser. 01083_ Found 40 Matter. 01086_ Acquired EM Shotgun. 01098_ Acquired Spread Laser. 01102_ A stash of uninstalled traps is collected here! 01102_ K-01 Serf collects debris. 01130_ Searching scrap... 01130_ Found Med. Matter Pod. 01130_ Found VTOL Module. 01130_ Found 18 Matter. 01136_ Acquired VTOL Module. 01159_ Searching scrap... 01159_ Found Signal Interpreter. 01159_ Found Sensor Array. 01159_ Found Sml. Storage Unit. 01159_ Found 19 Matter. 01162_ Acquired Sml. Storage Unit. 01165_ Wheel destroyed. 01174_ S-10 Pest destroyed. 01176_ K-01 Serf collects debris. Map ----- +----------------------------------------------------+ | #????????????????????????????????????????????? | | #????????????????????????????????????????????? | | #####????????????????????????????????????????????? | | ?????????????????????????????????????????????????? | | ?????????????????????????????????????????????????? | | ?????????????????????????????????????????????????? | | ####?????????????????????????????????????????????? | | #?????????????????????????????????????????????? | | ## #?????????????????????????????????????????????? | | ?# #?????????????????? ??????????????????????????? | | ?# ###### #?????????? #?????????????????????????? | | ?# #?????????? ?????????????????????????? | | ?### ## ###??????????# ?????????????????????????? | | ???# #? #????????????# ?????????????????????????? | | ???# #??#????????????# ?????????????????????????? | | ???# #???????????????# ?????????????????????????? | | #### #??????????????## ?????????????????????????? | | #?????????????## ###???#####??????????????? | | #### #?????????????# #### ???????????????? | | ???# #?????????????? ?????????????????? | | ???# #??????????????? ??????????????????? | | #### #####?###???????? #???????????????????? | | #?# ????????# s%*#???????????????????? | | ### #### #?# #??####### s#????????????????????? | | ??# #??# #?# #??# k ! #????????????????????? | | #?# #### ### #??# #### %@ ##???????????????????? | | #?# ## ## #???????# #####???????????????? | | ### # #### #??## #???????????????? | | ## #???## ### #???????????????? | | # # ######????## ##???????????????????? | | ## ## #??????????###t#????????????????????? | | ##### ###%#??????####### #????????????????????? | | ###???###### ####???# #????????????????????? | | ?????????## * ##??# #######????????????????????? | | ?????##### #??# #??????????????????????????? | | ????## & & #??# #??????????????????????????? | | ????# & ##??# #??????????????????????????? | | ????# #######???# #??????????????????????????? | | ????## ##?????????# #??????????????????????????? | | ?????## #??????????# #??????????????????????????? | | ??????# #??????????# #??????????????????????????? | | ??????# ######?????#!#??????????????????????????? | | ?????## ## ##????#%#??????????????????????????? | | ????## ##???# #??????????????????????????? | | ???## ##### #### """???????????????? | | ???# """" ????????????? | | ???# """" ????????????? | | ???## """" ######### #??????????????? | | ????###### ##?????????# ##??????????????? | | ?????????## ####????????????#####???????????????? | +----------------------------------------------------+ Best States ------------- Heat Dissipation 25 Energy Generation 14 Energy Capacity 160 Matter Stores 300 Matter Capacity 300 Sight Range 16 Terrain Scan Density 10 Evasion (%) 50 Item Schematics ----------------- None Robot Schematics ------------------ None Fabricated ------------ Nothing Alien Tech Used ----------------- None Achievements -------------- None Challenges ------------ None Game ------ Seed FlyingCentriumDesublimator Manual? 0 Play Time 00:09:07 Cumulative 89.6 hours Start 2023.10.29 @ 22:58:12 End 2023.10.29 @ 23:23:39 Sessions 1 Manual Loads 0 Difficulty Rogue Special Mode None Game No. 153 Rogue 150 Adventurer 3 Explorer 0 Win Type - Total 0 Types 0/0/0/0/0/0/0/0/0 Lore% 36 Gallery% 53 Achievement% 38 Wizard Run 0 Options --------- ASCII 0 Keyboard 0 Movement Mouse Keybinds 0 Fullscreen 2 Font 18/SmallcapsGlow Map View 76x50 Tactical HUD 1 Map Filters NONE Filters NONE Steam 1 RUN: cae51565-d57b-4476-9a92-552132b39b66